bitfinex/quotes_BTCUSD_20241123
["timestamp","ask_amount","ask_price","bid_price","bid_amount"]
[1732378517125,0.10201427,98027.0,98020.0,0.08339355]
[1732378517351,0.10201427,98027.0,98011.0,0.023]
[1732378517801,0.10201427,98023.0,98011.0,0.023]
[1732378518263,0.10201427,98023.0,98010.0,0.19089007]
[1732378518974,0.10201427,98023.0,98011.0,0.15]
[1732378520874,0.0009954,98040.0,98011.0,0.15]
[1732378520875,0.10201427,98014.0,98011.0,0.15]
[1732378521097,0.10201427,98014.0,98012.0,0.02982408]
[1732378521344,0.5434,98039.0,98013.0,0.023]
[1732378521588,0.10300127,98039.0,98029.0,0.1667871]
[1732378521796,0.10300127,98039.0,98030.0,0.18967871]
[1732378522015,0.10201427,98039.0,98030.0,0.18967871]
[1732378522660,0.10201427,98038.0,98030.0,0.15]
[1732378522916,0.10201427,98038.0,98029.0,0.08339355]
[1732378524972,0.10201427,98036.0,98020.0,0.08339355]
[1732378525487,0.10201427,98036.0,98016.0,0.0797]
[1732378525488,0.10201427,98026.0,98006.0,0.0797]
[1732378525732,0.10201427,98025.0,98010.0,0.14824084]
[1732378526445,0.10201427,98022.0,98010.0,0.06484729]
[1732378526662,0.2,98031.0,98010.0,0.06484729]
[1732378526663,0.16330885,98021.0,98010.0,0.06484729]
[1732378526878,0.02987892,98018.0,98011.0,0.00648473]
[1732378527107,0.02987892,98015.0,98011.0,0.00648473]
[1732378527351,0.10201427,98014.0,98010.0,0.06484729]
[1732378527615,0.02987892,98015.0,98010.0,0.06484729]
[1732378527832,0.10201427,98011.0,98010.0,0.06484729]
[1732378528277,0.16333282,98011.0,98010.0,0.06484729]
[1732378528511,0.36333282,98011.0,98010.0,0.06484729]
[1732378528977,0.16333282,98011.0,98010.0,0.06484729]
[1732378529418,0.30201427,98011.0,98010.0,0.06484729]
[1732378529641,0.36341079,98011.0,98010.0,0.06484729]
[1732378529869,0.35070072,98011.0,98010.0,0.06484729]
[1732378530086,0.44351099,98011.0,98010.0,0.06484729]
[1732378530751,0.43080072,98011.0,98010.0,0.02410297]
[1732378531241,0.43080072,98011.0,98010.0,0.02496457]
[1732378531242,0.44351127,98011.0,98010.0,0.02496457]
[1732378531683,0.43080072,98011.0,98010.0,0.02496457]
[1732378533523,0.40083983,98011.0,98010.0,0.02496457]
[1732378534018,0.43077201,98011.0,98010.0,0.02496457]
[1732378534946,0.43079034,98011.0,98010.0,0.02496457]
[1732378535384,0.43079034,98011.0,98001.0,0.15]
[1732378535385,0.2,98004.0,98001.0,0.15]
[1732378535616,0.10201427,98002.0,98001.0,0.15]
[1732378535835,0.15070766,98002.0,98001.0,0.15]
[1732378536729,0.16341957,98002.0,98001.0,0.15]
[1732378536957,0.15070766,98002.0,98001.0,0.25386805]
[1732378537183,0.10201427,98002.0,98001.0,0.25386805]
[1732378537403,0.10201427,98002.0,98001.0,0.15]
[1732378537654,0.15073783,98002.0,98001.0,0.15]
[1732378537867,0.1207541,98002.0,98001.0,0.15]
[1732378538849,0.10201427,98002.0,98001.0,0.15]
[1732378539061,0.12075821,98002.0,98001.0,0.15]
[1732378539285,0.10201427,98002.0,98001.0,0.15]
[1732378539517,0.10117327,98002.0,98001.0,0.15]
[1732378540464,0.00112847,98020.0,98003.0,0.048]
[1732378540715,0.10201427,98019.0,98010.0,0.1667871]
[1732378541007,0.10201427,98019.0,98011.0,0.18397871]
[1732378541990,0.10201427,98019.0,98012.0,0.023]
[1732378542227,0.2,98070.0,98026.0,0.15]
[1732378542469,0.0009927,98035.0,98034.0,0.023]
[1732378542704,0.10201427,98057.0,98035.0,0.048]
[1732378542915,0.10201427,98057.0,98038.0,0.023]
[1732378543405,0.10300897,98057.0,98038.0,0.023]
[1732378544182,0.10300897,98057.0,98048.0,0.023]
[1732378544401,0.10300897,98057.0,98048.0,0.173]
[1732378544637,0.10028797,98057.0,98048.0,0.173]
[1732378544850,0.09929327,98057.0,98050.0,0.023]
[1732378545300,0.10101667,98057.0,98050.0,0.023]
[1732378546914,0.10101667,98057.0,98042.0,0.023]
[1732378547818,0.10101667,98057.0,98039.0,0.023]
[1732378548055,0.10101667,98057.0,98041.0,0.023]
[1732378549028,0.10101667,98057.0,98041.0,0.173]
[1732378549497,0.15200907,98079.0,98043.0,0.023]
[1732378549730,0.15200907,98091.0,98061.0,0.15]
[1732378550001,0.0821,98096.0,98061.0,0.15]
[1732378550002,0.000984,98076.0,98061.0,0.15]
[1732378550316,0.15200907,98091.0,98062.0,0.02753047]
[1732378550501,0.10201427,98075.0,98062.0,0.02753047]
[1732378551209,0.10201427,98075.0,98055.0,0.023]
[1732378551685,0.10201427,98075.0,98054.0,0.023]
[1732378552162,0.10201427,98071.0,98043.0,0.023]
[1732378552384,0.10201427,98071.0,98043.0,0.173]
[1732378553520,0.10201427,98058.0,98036.0,0.23]
[1732378553736,0.12530473,98080.0,98037.0,0.0278]
[1732378553737,0.10201427,98057.0,98037.0,0.0278]
[1732378553951,0.10201427,98056.0,98027.0,0.04799093]
[1732378554230,0.10201427,98056.0,98028.0,0.01244909]
[1732378555140,0.10201427,98056.0,98029.0,0.023]
[1732378556027,0.10201427,98054.0,98029.0,0.023]
[1732378556462,0.10201427,98042.0,98015.0,0.03284453]
[1732378556728,0.10201427,98033.0,98005.0,0.04799093]
[1732378557412,0.10201427,98029.0,98001.0,0.14479093]
[1732378557632,0.10201427,98029.0,98028.0,0.0008613]
[1732378559040,0.25402334,98029.0,98028.0,0.0008613]
[1732378562711,0.25602334,98029.0,98028.0,0.0008613]
[1732378563660,0.99942334,98029.0,98028.0,0.0008613]
[1732378563921,1.04472334,98029.0,98028.0,0.0008613]
[1732378564490,1.04272334,98029.0,98028.0,0.0008613]
[1732378564949,0.79742334,98029.0,98028.0,0.0008613]
[1732378565954,0.99742334,98029.0,98028.0,0.0008613]
[1732378566211,0.79742334,98029.0,98028.0,0.0008613]
[1732378566907,0.15200907,98026.0,98000.0,3.06857756]
[1732378567143,0.10201427,98016.0,98000.0,3.06857756]
[1732378568782,0.10201427,98013.0,98000.0,3.06857756]
[1732378569007,0.10201427,98013.0,98001.0,0.15]
[1732378570515,0.10201427,98010.0,98001.0,0.15]
[1732378570739,0.10201427,98006.0,98001.0,0.15]
[1732378572394,0.10201427,98006.0,98002.0,0.023]
[1732378573367,0.10201427,98003.0,98000.0,3.06857756]
[1732378573617,0.10201427,98001.0,98000.0,3.06857756]
[1732378573855,0.25402334,98001.0,98000.0,3.06857756]
[1732378574820,0.25602334,98001.0,98000.0,3.06857756]
[1732378575055,0.25602334,98001.0,98000.0,3.06831133]
[1732378575289,0.3029227,98001.0,98000.0,3.06694633]
[1732378575757,0.3029227,98001.0,98000.0,3.06671883]
[1732378576503,0.3049227,98001.0,98000.0,3.06671883]
[1732378576992,0.3029227,98001.0,98000.0,3.06671883]
[1732378577669,0.40879075,98001.0,98000.0,3.06671883]
[1732378577896,0.3049227,98001.0,98000.0,3.06671883]
[1732378578130,0.3530227,98001.0,98000.0,3.06671883]
[1732378578383,0.3530227,98001.0,98000.0,2.80490373]
[1732378578917,1.0964227,98001.0,98000.0,2.80490373]
[1732378579179,1.27529075,98001.0,98000.0,2.85490373]
[1732378579831,1.1714227,98001.0,98000.0,2.72680373]
[1732378582156,1.1714227,98001.0,98000.0,2.73021435]
[1732378584552,1.3214227,98001.0,98000.0,2.73021435]
[1732378584778,1.3005227,98001.0,98000.0,2.05871435]
[1732378585003,1.40439075,98001.0,98000.0,2.05871435]
[1732378586060,1.30219075,98001.0,98000.0,1.92311435]
[1732378586291,1.30219075,98001.0,98000.0,1.84897808]
[1732378586525,1.30219075,98001.0,98000.0,1.81670019]
[1732378586751,1.32091163,98001.0,98000.0,1.81670019]
[1732378587253,1.28056274,98001.0,98000.0,1.64711894]
[1732378587488,1.28256274,98001.0,98000.0,1.64711894]
[1732378588202,1.31250738,98001.0,98000.0,1.64621894]
[1732378588726,1.08256274,98001.0,98000.0,1.64621894]
[1732378588992,1.28256274,98001.0,98000.0,1.64621894]
[1732378589219,1.28056274,98001.0,98000.0,1.64621894]
[1732378589482,1.28256274,98001.0,98000.0,1.64621894]
[1732378589709,1.31250054,98001.0,98000.0,1.64621894]
[1732378589950,1.31050054,98001.0,98000.0,1.10281894]
[1732378590185,1.31250054,98001.0,98000.0,1.10281894]
[1732378590437,1.31250054,98001.0,98000.0,1.06281894]
[1732378590891,1.31250054,98001.0,98000.0,1.03679671]
[1732378591454,1.31250054,98001.0,98000.0,1.03674086]
[1732378591733,1.31250054,98001.0,98000.0,1.01726422]
[1732378592202,1.32522287,98001.0,98000.0,0.38912959]
[1732378592449,1.32518176,98001.0,98000.0,0.31416159]
[1732378592673,1.26384186,98001.0,98000.0,0.31416159]
[1732378592942,1.26384186,98001.0,97967.0,0.023719]
[1732378592943,0.35116107,97970.0,97967.0,0.023719]
[1732378593257,1.0646767,97970.0,97969.0,0.0206346]
[1732378593479,1.18417328,97970.0,97969.0,0.0206346]
[1732378593945,1.21528856,97970.0,97969.0,0.0206346]
[1732378594217,1.22801124,97970.0,97969.0,0.0206346]
[1732378594669,1.21528856,97970.0,97969.0,0.0206346]
[1732378594936,1.26423928,97970.0,97969.0,0.0206346]
[1732378595445,1.24412365,97970.0,97969.0,0.0206346]
[1732378595908,1.24404684,97970.0,97969.0,0.0206346]
[1732378597297,1.25677115,97970.0,97969.0,0.0206346]
[1732378597757,1.10761008,97970.0,97969.0,0.0206346]
[1732378598035,1.25677115,97970.0,97969.0,0.0206346]
[1732378599130,0.56337115,97970.0,97969.0,0.0206346]
[1732378599630,0.36337115,97970.0,97969.0,0.0206346]
[1732378599879,0.56137115,97970.0,97969.0,0.0206346]
[1732378600130,0.54864684,97970.0,97969.0,0.0206346]
[1732378601051,0.60371152,97970.0,97969.0,0.0206346]
[1732378601301,0.55064684,97970.0,97969.0,0.0206346]
[1732378602220,0.56336743,97970.0,97969.0,0.0206346]
[1732378603103,0.36336743,97970.0,97969.0,0.0206346]
[1732378603348,0.51441671,97970.0,97969.0,0.0206346]
[1732378603548,0.31241671,97970.0,97969.0,0.0206346]
[1732378604208,0.16325564,97970.0,97969.0,0.0206346]
[1732378605126,0.16525564,97970.0,97969.0,0.0206346]
[1732378605374,0.41969096,97970.0,97969.0,0.0206346]
[1732378605865,0.56885203,97970.0,97969.0,0.0206346]
[1732378606086,0.51441671,97970.0,97969.0,0.0206346]
[1732378608017,0.51441671,97970.0,97969.0,0.0214949]
[1732378609102,0.51462032,97970.0,97969.0,0.02063054]
[1732378610520,0.51463384,97970.0,97969.0,0.02063054]
[1732378610994,0.31463384,97970.0,97969.0,0.02063054]
[1732378611235,0.16347277,97970.0,97969.0,0.10273054]
[1732378611471,0.12075948,97970.0,97969.0,0.10273054]
[1732378611706,0.10201427,97970.0,97969.0,0.14923054]
[1732378612681,0.0017206,97982.0,97970.0,0.1286]
[1732378612915,0.10201427,97981.0,97975.0,0.0465]
[1732378613140,0.10201427,97981.0,97977.0,0.0465]
[1732378613364,0.10201427,97981.0,97978.0,0.0821]
[1732378613589,0.0017206,97982.0,97980.0,0.023]
[1732378613838,0.0037202,98001.0,97981.0,0.1286]
[1732378614067,0.10201427,98000.0,97981.0,0.1286]
[1732378614570,0.002,97995.0,97981.0,0.1286]
[1732378614837,0.12075782,97994.0,97981.0,0.1286]
[1732378615074,0.02074355,97993.0,97981.0,0.1286]
[1732378615303,0.10201427,97982.0,97981.0,0.1286]
[1732378615538,0.25117534,97982.0,97981.0,0.1286]
[1732378616017,0.26991122,97982.0,97981.0,0.1286]
[1732378616572,0.26990917,97982.0,97981.0,0.1286]
[1732378616809,0.27190917,97982.0,97981.0,0.0465]
[1732378617032,0.27190917,97982.0,97947.0,0.05083893]
[1732378617033,0.002,97975.0,97948.0,0.023]
[1732378617263,0.002,97975.0,97947.0,0.05083893]
[1732378617264,0.08381059,97970.0,97950.0,0.023]
[1732378617523,0.10201427,97969.0,97950.0,0.023]
[1732378617962,0.10201427,97969.0,97948.0,0.023]
[1732378618428,0.10201427,97969.0,97948.0,0.03038389]
[1732378620027,0.002,97965.0,97950.0,0.023]
[1732378620258,0.08381059,97960.0,97949.0,0.1286]
[1732378620487,0.12079676,97959.0,97949.0,0.1286]
[1732378620716,0.10201427,97959.0,97949.0,0.1286]
[1732378623649,0.10201427,97957.0,97949.0,0.1286]
[1732378623897,0.10201427,97957.0,97949.0,0.0465]
[1732378624159,0.10201427,97957.0,97948.0,0.0008604]
[1732378624160,0.10201427,97950.0,97948.0,0.0008604]
[1732378624387,0.10201427,97949.0,97948.0,0.0008604]
[1732378624851,0.25117534,97949.0,97948.0,0.0008604]
[1732378625092,0.25317534,97949.0,97948.0,0.0008604]
[1732378626058,0.27849287,97949.0,97948.0,0.0008604]
[1732378626532,0.60317534,97949.0,97948.0,0.0008604]
[1732378626762,0.68277534,97949.0,97948.0,0.0008604]
[1732378627003,0.62190508,97949.0,97948.0,0.0008604]
[1732378627256,0.62190487,97949.0,97948.0,0.0008604]
[1732378627488,0.58410221,97949.0,97948.0,0.0008604]
[1732378627713,0.52048322,97949.0,97948.0,0.0008604]
[1732378627942,0.264073,97949.0,97948.0,0.0008604]
[1732378628171,0.4640752,97949.0,97948.0,0.0008604]
[1732378628410,0.43410442,97949.0,97948.0,0.0008604]
[1732378628652,0.46408075,97949.0,97948.0,0.0008604]
[1732378628903,0.45263975,97949.0,97948.0,0.0008604]
[1732378629584,0.42266342,97949.0,97948.0,0.0008604]
[1732378630054,0.41349782,97949.0,97948.0,0.0008604]
[1732378630292,0.40869982,97949.0,97948.0,0.0008604]
[1732378630521,0.38881624,97949.0,97948.0,0.0008604]
[1732378630751,0.41879027,97949.0,97948.0,0.0008604]
[1732378631278,0.21879027,97949.0,97948.0,0.0008604]
[1732378631513,0.18881624,97949.0,97948.0,0.0008604]
[1732378632422,0.1700845,97949.0,97948.0,0.0008604]
[1732378633119,0.18881209,97949.0,97948.0,0.0008604]
[1732378633356,0.1700845,97949.0,97948.0,0.0008604]
[1732378636208,0.1656825,97949.0,97948.0,0.0008604]
[1732378637177,0.16356208,97949.0,97948.0,0.0008604]
[1732378637668,0.002,97933.0,97930.0,0.0034304]
[1732378637892,0.10401427,97932.0,97931.0,0.023]
[1732378638653,0.10201427,97932.0,97931.0,0.023]
[1732378638866,0.002,97931.0,97930.0,0.0034304]
[1732378639127,0.10201427,97931.0,97930.0,0.0214304]
[1732378639831,0.10401427,97931.0,97930.0,0.0214304]
[1732378643295,0.10201427,97931.0,97930.0,0.0214304]
[1732378643546,0.10401427,97931.0,97930.0,0.0214304]
[1732378643777,0.15116107,97930.0,97929.0,0.02686609]
[1732378644020,0.25317534,97930.0,97929.0,0.02686609]
[1732378644734,0.27191417,97930.0,97929.0,0.02686609]
[1732378645948,0.27191417,97930.0,97929.0,0.02677486]
[1732378646420,0.30189933,97930.0,97929.0,0.02677486]
[1732378646928,0.31462584,97930.0,97929.0,0.02677486]
[1732378647912,0.34460956,97930.0,97929.0,0.02677486]
[1732378648142,0.39432584,97930.0,97929.0,0.02677486]
[1732378648373,0.002,97901.0,97899.0,0.0147517]
[1732378648607,0.58067534,97901.0,97899.0,0.0147517]
[1732378648836,0.58159437,97901.0,97899.0,0.0147517]
[1732378649082,0.39432428,97901.0,97899.0,0.0147517]
[1732378649313,0.31462428,97901.0,97899.0,0.0147517]
[1732378649550,0.31462428,97901.0,97853.0,0.27318531]
[1732378649551,0.16348454,97892.0,97850.0,0.03655546]
[1732378649779,0.10201427,97884.0,97857.0,0.03651546]
[1732378650277,0.10201427,97884.0,97850.0,4e-05]
[1732378650278,0.10201427,97884.0,97855.0,0.03651546]
[1732378650526,0.002,97872.0,97850.0,4e-05]
[1732378650758,0.08381059,97880.0,97832.0,0.0008607]
[1732378650759,0.10201427,97871.0,97846.0,0.03651546]
[1732378650997,0.10201427,97871.0,97832.0,0.2008607]
[1732378650998,0.10201427,97879.0,97855.0,0.03651546]
[1732378651227,0.01871877,97870.0,97855.0,0.03651546]
[1732378651457,0.08381059,97880.0,97855.0,0.03651546]
[1732378651458,0.12073304,97869.0,97855.0,0.03651546]
[1732378651682,0.12073304,97869.0,97850.0,0.05951546]
[1732378651683,0.12072496,97869.0,97850.0,0.05951546]
[1732378651916,0.01871069,97868.0,97856.0,0.023]
[1732378652143,0.08381059,97880.0,97856.0,0.023]
[1732378652144,0.12072496,97867.0,97856.0,0.023]
[1732378652368,0.12072496,97867.0,97857.0,0.00595155]
[1732378652599,0.01871069,97866.0,97860.0,0.023]
[1732378652851,0.01871069,97865.0,97860.0,0.023]
[1732378653296,0.01871069,97864.0,97860.0,0.023]
[1732378653522,0.01871069,97864.0,97862.0,0.023]
[1732378653751,0.01871069,97864.0,97858.0,0.1305]
[1732378653752,0.01871069,97863.0,97830.0,0.08381059]
[1732378654016,0.01871069,97863.0,97850.0,0.08381059]
[1732378654241,0.10201427,97889.0,97851.0,0.10303598]
[1732378654492,0.10201427,97889.0,97860.0,0.08381059]
[1732378654721,0.2,97908.0,97870.0,0.08381059]
[1732378654979,0.12073332,97907.0,97871.0,0.10201427]
[1732378655436,0.01871905,97906.0,97871.0,0.10201427]
[1732378655670,0.01871905,97906.0,97872.0,0.173]
[1732378655671,0.10201427,97905.0,97872.0,0.173]
[1732378655891,0.04867539,97904.0,97873.0,0.13789676]
[1732378656110,0.01871905,97903.0,97874.0,0.173]
[1732378656565,0.10201427,97904.0,97875.0,0.1305]
[1732378656566,0.01871905,97902.0,97875.0,0.1305]
[1732378656821,0.01871905,97901.0,97876.0,0.22552074]
[1732378657059,0.01871905,97900.0,97876.0,0.22552074]
[1732378658104,0.15070076,97898.0,97876.0,0.15]
[1732378658339,0.04868649,97897.0,97876.0,0.15]
[1732378658614,0.04868649,97897.0,97875.0,0.1305]
[1732378658615,0.2,97889.0,97875.0,0.1305]
[1732378658850,0.13708435,97896.0,97831.0,0.00838106]
[1732378658851,0.2,97882.0,97865.0,0.0825]
[1732378659086,0.2,97871.0,97853.0,0.0825]
[1732378659322,0.2,97868.0,97853.0,0.0825]
[1732378659539,0.2,97864.0,97846.0,0.0498]
[1732378659760,0.12074068,97863.0,97846.0,0.0498]
[1732378659982,0.2,97862.0,97843.0,0.0825]
[1732378660207,0.2,97862.0,97833.0,0.0498]
[1732378660208,0.2,97858.0,97833.0,0.0498]
[1732378660429,0.16337917,97857.0,97833.0,0.0498]
[1732378660651,0.2,97853.0,97833.0,0.0498]
[1732378660873,0.10201427,97852.0,97830.0,0.0825]
[1732378661104,0.10201427,97852.0,97831.0,0.00825]
[1732378661381,0.04863425,97851.0,97830.0,0.0775]
[1732378661623,0.04863425,97851.0,97818.0,0.0498]
[1732378661624,0.2,97848.0,97818.0,0.0498]
[1732378661873,0.16071059,97860.0,97818.0,0.0498]
[1732378661874,0.2,97846.0,97818.0,0.0498]
[1732378662103,0.2,97843.0,97818.0,0.0498]
[1732378662323,0.10201427,97842.0,97818.0,0.0498]
[1732378662553,0.06136644,97841.0,97818.0,0.0498]
[1732378662782,0.2,97843.0,97818.0,0.0498]
[1732378662783,0.16338071,97840.0,97818.0,0.0498]
[1732378663012,0.2,97834.0,97802.0,0.03231827]
[1732378663229,0.10201427,97833.0,97803.0,0.33627991]
[1732378663477,0.06136644,97832.0,97804.0,0.05370725]
[1732378663701,0.02992877,97826.0,97804.0,0.05370725]
[1732378663920,0.02992877,97825.0,97804.0,0.13620725]
[1732378664152,0.06136644,97824.0,97805.0,0.20911614]
[1732378664376,0.02992877,97820.0,97810.0,0.08381059]
[1732378664603,0.02992877,97824.0,97806.0,0.15]
[1732378664837,0.06127241,97823.0,97807.0,0.08126898]
[1732378665069,0.06127241,97822.0,97807.0,0.08126898]
[1732378665303,0.06127241,97821.0,97806.0,0.15]
[1732378665577,0.06127241,97821.0,97804.0,0.2325]
[1732378665812,0.06127241,97820.0,97805.0,0.20374542]
[1732378666064,0.16328668,97819.0,97805.0,0.15]
[1732378666295,0.02992877,97817.0,97805.0,0.15]
[1732378666527,0.06127241,97818.0,97805.0,0.15]
[1732378666528,0.02992877,97814.0,97805.0,0.15]
[1732378666778,0.08381059,97840.0,97805.0,0.15]
[1732378666779,0.02992877,97813.0,97805.0,0.20211436]
[1732378666987,0.02992877,97817.0,97806.0,0.15181427]
[1732378667218,0.02992877,97824.0,97807.0,0.25079519]
[1732378667442,0.02992877,97833.0,97814.0,0.08381059]
[1732378667673,0.02992877,97833.0,97807.0,0.1669846]
[1732378667674,0.02992877,97836.0,97830.0,0.08381059]
[1732378667905,0.10201427,97847.0,97815.0,0.12501427]
[1732378667906,0.10201427,97847.0,97820.0,0.08381059]
[1732378668132,0.06125292,97846.0,97820.0,0.18582486]
[1732378668368,0.10201427,97852.0,97821.0,0.12516903]
[1732378668632,0.0612661,97851.0,97821.0,0.12516903]
[1732378668852,0.0612661,97850.0,97830.0,0.08381059]
[1732378669070,0.01866758,97849.0,97830.0,0.08381059]
[1732378669303,0.2,97863.0,97831.0,0.00838106]
[1732378669519,0.2,97854.0,97831.0,0.00838106]
[1732378669783,0.2,97854.0,97823.0,0.15]
[1732378669784,0.15056295,97853.0,97823.0,0.15]
[1732378670010,0.16329343,97853.0,97822.0,0.0244481]
[1732378670238,0.06127916,97852.0,97815.0,0.03259805]
[1732378670462,0.10201427,97851.0,97820.0,0.08381059]
[1732378670696,0.02992877,97849.0,97820.0,0.08381059]
[1732378670925,0.2,97854.0,97820.0,0.08381059]
[1732378670926,0.16329343,97848.0,97821.0,0.00102213]
[1732378671154,0.04854868,97847.0,97821.0,0.18358249]
[1732378671379,0.2,97845.0,97808.0,0.03335644]
[1732378671606,0.15056295,97844.0,97808.0,0.13537071]
[1732378671837,0.16329528,97844.0,97810.0,0.08381059]
[1732378672099,0.04854868,97843.0,97809.0,0.02618707]
[1732378672326,0.2,97861.0,97800.0,0.10385259]
[1732378672327,0.10201427,97826.0,97800.0,0.020042]
[1732378672546,0.2,97819.0,97800.0,0.020042]
[1732378672771,0.01867857,97818.0,97810.0,0.0767]
[1732378673002,0.2,97845.0,97810.0,0.0767]
[1732378673003,0.10201427,97841.0,97811.0,0.02625249]
[1732378673280,0.06129488,97840.0,97831.0,0.0008615]
[1732378673519,0.2,97838.0,97831.0,0.0008615]
[1732378673780,0.01867709,97839.0,97831.0,0.0008615]
[1732378674001,0.15058275,97838.0,97831.0,0.0008615]
[1732378674233,0.04856848,97837.0,97831.0,0.0008615]
[1732378674461,0.15058275,97836.0,97831.0,0.0008615]
[1732378674693,0.00038507,97831.0,97811.0,0.15]
[1732378674921,0.15058275,97830.0,97812.0,0.015]
[1732378675155,0.15058275,97830.0,97802.0,0.0498]
[1732378675156,0.2,97826.0,97802.0,0.0498]
[1732378675378,0.002,97812.0,97780.0,0.08381059]
[1732378675598,0.10201427,97825.0,97780.0,0.08381059]
[1732378675599,0.002,97809.0,97781.0,0.10201427]
[1732378675857,0.002,97809.0,97782.0,0.01858249]
[1732378676091,0.10201427,97825.0,97782.0,0.01858249]
[1732378676092,0.002,97812.0,97790.0,0.08381059]
[1732378676322,0.002,97809.0,97790.0,0.07822052]
[1732378676545,0.002,97809.0,97791.0,0.00102242]
[1732378676771,0.001732,97809.0,97790.0,0.07822052]
[1732378677004,0.001732,97807.0,97791.0,0.17282205]
[1732378677270,0.09874627,97825.0,97791.0,0.15]
[1732378677501,0.06130013,97824.0,97791.0,0.15]
[1732378677722,0.06130013,97824.0,97783.0,0.10201427]
[1732378677723,0.1633144,97823.0,97792.0,0.015]
[1732378677956,0.06130013,97822.0,97783.0,0.10201427]
[1732378678208,0.2,97810.0,97780.0,0.0498]
[1732378678492,0.2,97810.0,97739.0,0.00050816]
[1732378678493,0.1633144,97809.0,97764.0,0.1245]
[1732378678718,0.06130013,97808.0,97771.0,0.10201427]
[1732378678945,0.15057845,97807.0,97771.0,0.10201427]
[1732378679173,0.04856418,97806.0,97765.0,0.01245]
[1732378679404,0.2,97797.0,97766.0,0.02207606]
[1732378679633,0.1206928,97796.0,97766.0,0.02207606]
[1732378679847,0.2,97794.0,97766.0,0.02207606]
[1732378680063,0.12067985,97793.0,97766.0,0.02207606]
[1732378680303,0.12067985,97793.0,97767.0,0.00894469]
[1732378680521,0.2,97788.0,97767.0,0.00894469]
[1732378680749,0.10201427,97787.0,97767.0,0.00894469]
[1732378681043,0.10201427,97787.0,97767.0,0.00883496]
[1732378681279,0.10201427,97787.0,97743.0,0.0001459]
[1732378681524,0.2,97783.0,97750.0,0.08381059]
[1732378681753,0.10201427,97782.0,97750.0,0.08381059]
[1732378681981,0.10201427,97782.0,97748.0,0.08195033]
[1732378682226,0.10201427,97782.0,97749.0,0.00820962]
[1732378682472,0.2,97781.0,97748.0,0.03355033]
[1732378682721,0.2,97771.0,97770.0,0.15]
[1732378682988,0.30201427,97771.0,97731.0,0.0001459]
[1732378683216,0.10201427,97770.0,97740.0,0.08381059]
[1732378683448,0.0755,97781.0,97760.0,0.08381059]
[1732378683680,0.0498,97798.0,97741.0,0.00946947]
[1732378683681,0.2,97791.0,97750.0,0.08381059]
[1732378683915,0.1206462,97790.0,97751.0,0.10303707]
[1732378684164,0.10201427,97790.0,97752.0,0.01030371]
[1732378684389,0.10201427,97790.0,97753.0,0.15]
[1732378684619,0.10201427,97790.0,97760.0,0.08381059]
[1732378684934,0.10201427,97790.0,97761.0,0.00838106]
[1732378685035,0.2,97783.0,97761.0,0.00838106]
[1732378685277,0.10201427,97782.0,97760.0,0.08381059]
[1732378685500,0.0755,97797.0,97770.0,0.08381059]
[1732378685723,0.15047557,97796.0,97771.0,0.00838106]
[1732378685944,0.01863896,97795.0,97771.0,0.00838106]
[1732378686182,0.2,97819.0,97780.0,0.08381059]
[1732378686410,0.0755,97823.0,97772.0,0.15041427]
[1732378686411,0.15052474,97818.0,97790.0,0.08381059]
[1732378686629,0.12067214,97818.0,97790.0,0.08381059]
[1732378686875,0.01865787,97817.0,97790.0,0.08381059]
[1732378687098,0.12067214,97816.0,97791.0,0.00838106]
[1732378687310,0.0498,97833.0,97800.0,0.08381059]
[1732378687311,0.01865787,97815.0,97800.0,0.08381059]
[1732378687560,0.01865787,97814.0,97800.0,0.08381059]
[1732378687795,0.01865787,97813.0,97800.0,0.08381059]
[1732378688035,0.04855098,97812.0,97802.0,0.15]
[1732378688260,0.02986228,97839.0,97804.0,0.15]
[1732378688486,0.04863209,97838.0,97820.0,0.08381059]
[1732378688714,0.03285209,97838.0,97821.0,0.00940319]
[1732378688967,0.03285209,97837.0,97821.0,0.15940319]
[1732378689205,0.02992744,97865.0,97827.0,0.12589247]
[1732378689438,0.10201427,97864.0,97828.0,0.15]
[1732378689662,0.04267566,97863.0,97829.0,0.03779067]
[1732378689892,0.13195843,97862.0,97830.0,0.00102201]
[1732378690130,0.0767,97869.0,97850.0,0.12589247]
[1732378690353,0.0479,97888.0,97850.0,0.12589247]
[1732378690354,0.10201427,97868.0,97851.0,0.16258925]
[1732378690601,0.0767,97886.0,97851.0,0.16258925]
[1732378690823,0.2,97885.0,97851.0,0.16258925]
[1732378691044,0.2767,97886.0,97851.0,0.16258925]
[1732378691285,0.0016119,97870.0,97852.0,0.00102181]
[1732378691594,0.0016119,97870.0,97851.0,0.16258925]
[1732378691595,0.0016119,97870.0,97853.0,0.02895035]
[1732378692315,0.0016119,97870.0,97860.0,0.12589247]
[1732378692564,0.0016119,97870.0,97861.0,0.15]
[1732378692793,0.0016119,97870.0,97855.0,0.15]
[1732378693046,0.0016119,97870.0,97850.0,0.12589247]
[1732378693047,0.0016119,97870.0,97860.0,0.12589247]
[1732378693539,0.0016119,97870.0,97857.0,0.15]
[1732378693757,0.0016119,97870.0,97859.0,0.15]
[1732378694005,0.0016119,97870.0,97861.0,0.15]
[1732378694263,0.0016119,97870.0,97862.0,0.03789284]
[1732378694495,0.2,97896.0,97862.0,0.03789284]
[1732378694734,0.10201427,97895.0,97862.0,0.03789284]
[1732378695186,0.2017236,97923.0,97887.0,0.0038881]
[1732378695410,0.2017236,97923.0,97888.0,0.02797806]
[1732378695631,0.10201427,97911.0,97888.0,0.02797806]
[1732378696323,0.2,97921.0,97888.0,0.02797806]
[1732378696813,0.0017236,97923.0,97883.0,0.0038881]
[1732378697044,0.0017236,97923.0,97885.0,0.15]
[1732378697275,0.0017236,97923.0,97890.0,0.0038881]
[1732378697504,0.0017236,97923.0,97892.0,0.15]
[1732378697739,0.0017236,97923.0,97894.0,0.15]
[1732378698009,0.0017236,97923.0,97901.0,0.15]
[1732378698264,0.0017236,97923.0,97900.0,0.12589247]
[1732378698265,1.0017246,97912.0,97907.0,0.0038881]
[1732378698469,1.0017246,97912.0,97903.0,0.15]
[1732378699414,1.0017246,97912.0,97909.0,0.15]
[1732378699644,1.0017246,97912.0,97911.0,0.15]
[1732378699872,1.0017246,97912.0,97911.0,0.25201427]
[1732378700339,1.0017246,97912.0,97909.0,0.01209024]
[1732378700594,1.0017246,97912.0,97910.0,0.10590237]
[1732378700824,1.0017246,97912.0,97911.0,0.0038881]
[1732378701042,1.0017246,97912.0,97911.0,0.10590237]